Workbook

Sheet кмкец
M1: Додаток до листа
M2: від ________ 2020 № ______
B3: ІНФОРМАЦІЯ про надходження і використання благодійних пожертв від фізичних та юридичних осіб КНП Київський міський клінічний ендокринологічний центр за 3 квартал 2020 року
A4: найменування закладу охорони здоров′я
A5: № пп | B5: Найменування юридичної особи (або позначення фізичної особи) | C5: Благодійні пожертви, що були отримані закладом охорони здоров'я від фізичних та юридичних осіб | F5: Всього отримано благодійних пожертв, тис. грн | G5: Використання закладом охорони здоров'я благодійних пожертв, отриманих у грошовій (товари і послуг) формі | K5: Залишок невикористаних грошових коштів, товарів та послуг на кінець звітного періоду, тис. грн
C6: В грошовій форм, тис. грн | D6: В натуральній формі (товари і послуги), тис. грн | E6: Перелік товарів і послуг в натуральній формі (канцтовари, господарські товари, будівельні товари, медикаменти та перев'язувальні матеріали, продукти харчування, м"який інвентар, основні засоби та інші) | G6: Напрямки використання у грошовій формі (стаття витрат) | H6: Сума, тис. грн | I6: Перелік використаних товарів та послуг у натуральній формі (канцтовари, господарські товари, будівельні товари, медикаменти та перев'язувальні матеріали, продукти харчування, м"який інвентар, основні засоби та інші) | J6: Сума, тис. грн
A7: 1 | B7: ФОП"Маринець" | D7: 12.8 | E7: компьютери | F7: =SUM(C7,D7) -> 12.8 | I7: компьютери | J7: 12.8
A8: 2 | B8: Епіцентр К | D8: 71.1 | E8: господ.товари | F8: =SUM(C8,D8) -> 71.1 | I8: ліноліум | J8: 6
B9: Епіцентр К | F9: 0 | I9: лампи світильні | J9: 8.2
B10: Епіцентр К | F10: 0 | I10: світильники | J10: 1.3
B11: Епіцентр К | F11: 0 | I11: цемент | J11: 2.8
B12: Епіцентр К | F12: 0 | I12: труби металеві | J12: 8.9
B13: Епіцентр К | F13: 0 | I13: лампи LED | J13: 3.9
B14: Епіцентр К | F14: 0 | I14: провод | J14: 8.7
B15: Епіцентр К | F15: 0 | I15: миючі | J15: 31.3
B16: Епіцентр К | D16: 20 | E16: дезинф.засоби | F16: 20 | I16: дезинф.засоби | J16: 20
A17: 3 | B17: ТОВ "Електромедсистем" | D17: 5.8 | E17: кабель | F17: 5.8 | I17: кабель | J17: 5.8
D18: 35 | E18: ранорозширювачі | F18: 35 | I18: ранорозширювачі | J18: 35
A19: 4 | B19: ТОВ "Роллотект" | D19: 3.2 | E19: ролети | F19: 3.2 | I19: ролети | J19: 3.2
A20: 5 | B20: ТОВ "Теспро" | D20: 35 | E20: вак.пробірки | F20: 35 | I20: вак.пробірки | J20: 35
A21: 6 | B21: ТОВ "Асека" | D21: 263.6 | E21: затискач | F21: 263.6 | I21: затискач | J21: 263.6
A22: 7 | B22: ФО "Близнюк" | D22: 6.2 | E22: набори лабораторні | F22: 6.2 | I22: набори лабораторні | J22: 6.2
A23: 8 | B23: ТОВ " МТІ -сервіс" | D23: 3.4 | E23: акумулятор. батареї | F23: 3.4 | I23: акумулятор. батареї | J23: 3.4
A24: 9 | B24: ФОП "Пацкан" | D24: 50 | E24: харчування | F24: 50 | I24: харчування | J24: 50
A25: 10 | B25: ФОП "Челик СофЮр" | D25: 6 | E25: леза | F25: 6 | I25: леза | J25: 6
A26: 11 | B26: ТОВ "Медична техніка" | D26: 3.4 | E26: кабель ЕКГ | F26: 3.4 | I26: кабель ЕКГ | J26: 3.4
A27: 12 | B27: ТОВ "ОАД" | D27: 20 | E27: крани кутові | F27: 20 | I27: крани кутові | J27: 20
A28: 13 | B28: ДП"Вікна -Прок" | D28: 15 | E28: жалюзі | F28: 15 | I28: жалюзі | J28: 15
A29: 14 | B29: ФОП " Васьки" | D29: 65 | E29: послуги | F29: 65 | I29: послуги | J29: 65
F30: 0
F31: 0
B32: ВСЬОГО по закладу | C32: =SUM(C7:C31) -> 0 | D32: =SUM(D7:D31) -> 615.5 | F32: 615.5 | H32: =SUM(H7:H31) -> 0 | J32: =SUM(J7:J31) -> 615.5 | K32: =C32-H32 -> 0
B35: Керівник установи
F36: (підпис) (ініціали і прізвище)
B37: Головний бухгалтер
F38: (підпис) (ініціали і прізвище)

Sheet кмцрп
M1: Додаток до листа
M2: від 01.04.2019 №061-3533
B3: ІНФОРМАЦІЯ про надходження і використання благодійних пожертв від фізичних та юридичних осіб Київського міського центру репродуктивної та перинатальної медицини за IІI квартал 2020 року
A4: найменування закладу охорони здоров′я
A5: № пп | B5: Найменування юридичної особи (або позначення фізичної особи) | C5: Благодійні пожертви, що були отримані закладом охорони здоров'я від фізичних та юридичних осіб | F5: Всього отримано благодійних пожертв, тис. грн | G5: Використання закладом охорони здоров'я благодійних пожертв, отриманих у грошовій (товари і послуг) формі | K5: Залишок невикористаних грошових коштів, товарів та послуг на кінець звітного періоду, тис. грн
C6: В грошовій форм, тис. грн | D6: В натуральній формі (товари і послуги), тис. грн | E6: Перелік товарів і послуг в натуральній формі (канцтовари, господарські товари, будівельні товари, медикаменти та перев'язувальні матеріали, продукти харчування, м"який інвентар, основні засоби та інші) | G6: Напрямки використання у грошовій формі (стаття витрат) | H6: Сума, тис. грн | I6: Перелік використаних товарів та послуг у натуральній формі (канцтовари, господарські товари, будівельні товари, медикаменти та перев'язувальні матеріали, продукти харчування, м"який інвентар, основні засоби та інші) | J6: Сума, тис. грн
A7: 1 | B7: Фонд сприяння народжуваності в Україні (ПП "Медіта") | D7: =20.213+3.441+20.987 -> 44.641 | E7: медикаменти,вироби мед.призначення | F7: =SUM(C7,D7) -> 44.641 | I7: медикаменти,вироби мед.призначення | J7: =F7 -> 44.641
B8: КНП "КМЦК" | D8: =7.829+1.893+10.786+1.485+3.381+1.485 -> 26.859 | E8: компоненти і препарати крові | F8: =SUM(C8,D8) -> 26.859 | I8: компоненти і препарати крові | J8: 26.859
B9: ТОВ "Стоунхендж" | D9: =86 -> 86 | E9: Промивач для мікропланшетів | F9: 86 | I9: Промивач для мікропланшетів | J9: 86
B10: КНП"Перинатальний центр міста Києва" | D10: =69.278+11.159 -> 80.437 | E10: Октаплекс, Імуноглобулін | F10: 80.437 | I10: Октаплекс, Імуноглобулін | J10: 80.437
B11: БФ"Твоя опора" | D11: =658.87 -> 658.87 | E11: Апарат штучної вентиляції легень | F11: 658.87 | I11: Апарат штучної вентиляції легень | J11: 658.87
B12: ФОП Бодров Е.Е. | D12: =215 -> 215 | E12: Аналізатор електролітів та газів крові | F12: 215 | I12: Аналізатор електролітів та газів крові | J12: 215
A13: 2 | B13: Фізична особа | C13: 248.686 | F13: 248.686
F14: 0
G15: 2210 | H15: =14.388 -> 14.388 | I15: миючі засоби
F17: 0 | G17: 2220 | H17: =20.8+16.354+21.463+21.463+14.311+12+0.595+0.109 -> 107.095 | I17: медикаменти
F18: 0 | G18: 2220 | H18: =98.955 -> 98.955 | I18: засоби дезінфікуючі
F19: 0 | G19: 2220 | H19: =6.6+0.502 -> 7.102 | I19: реактиви лабораторні
F20: 0 | G20: 2220 | H20: =49.868+19.937+3.577+13.144 -> 86.526 | I20: вироби мед.призначення
F21: 0 | G21: 2220 | H21: =6.93 -> 6.93 | I21: маска медична
F22: 0 | G22: 2220 | H22: =29.155 -> 29.155 | I22: Медичні гази
F23: 0 | G23: 2220 | H23: =6.998 -> 6.998 | I23: крафт-папір
F24: 0 | G24: 2220 | H24: =39.606 -> 39.606 | I24: Рукавички
F26: 0 | G26: 2240 | H26: =2.8+2.4+4.505 -> 9.705 | I26: обслуг.комп.та оф.техніки
F27: 0 | G27: 2240 | H27: =9.602+9.602 -> 19.204 | I27: технічне обслуговування ліфтів
F28: 0 | G28: 2240 | H28: =2.21+2.21+2.21+2.21 -> 8.84 | I28: тхнічне обслуг.сис-ми рег.опалення
F29: 0 | G29: 2240 | H29: =4.545+4.545 -> 9.09 | I29: тех.обслуг.пожеж.сиг-ції
F30: 0 | G30: 2240 | H30: =2.34+0.65+7.128 -> 10.118 | I30: програмне забезпечення
F31: 0 | G31: 2240 | H31: =3.9+3.9+3.9 -> 11.7 | I31: охоронні послуги
F32: 0 | G32: 2240 | H32: =6.75+3.51 -> 10.26 | I32: поточ.ремонт мед.обладнання
F33: 0 | G33: 2240 | H33: =7.2+7.2 -> 14.4 | I33: знеш.небезпеч.відход.
F34: 0
B35: ВСЬОГО по закладу | C35: =SUM(C7:C34) -> 248.686 | D35: =SUM(D7:D34) -> 1111.807 | F35: 1360.493 | H35: =SUM(H7:H34) -> 490.072 | J35: =SUM(J7:J34) -> 1111.807 | K35: =C35-H35 -> -241.386
B38: Голова комісії з реорганізації | G38: В.В.Камінський
F39: (підпис) (ініціали і прізвище)
B40: Член комвсії | G40: Л.В. Іванець
F41: (підпис) (ініціали і прізвище)

Sheet кмкоц
M1: Додаток до листа
M2: від ________ 2018 № ______
B3: ІНФОРМАЦІЯ про надходження і використання благодійних пожертв від фізичних та юридичних осіб Київський міський клінічний онкологічний центр за 3 квартал 2020 року
A4: найменування закладу охорони здоров′я
A5: № пп | B5: Найменування юридичної особи (або позначення фізичної особи) | C5: Благодійні пожертви, що були отримані закладом охорони здоров'я від фізичних та юридичних осіб | F5: Всього отримано благодійних пожертв, тис. грн | G5: Використання закладом охорони здоров'я благодійних пожертв, отриманих у грошовій (товари і послуг) формі | K5: Залишок невикористаних грошових коштів, товарів та послуг на кінець звітного періоду, тис. грн
C6: В грошовій форм, тис. грн | D6: В натуральній формі (товари і послуги), тис. грн | E6: Перелік товарів і послуг в натуральній формі (канцтовари, господарські товари, будівельні товари, медикаменти та перев'язувальні матеріали, продукти харчування, м"який інвентар, основні засоби та інші) | G6: Напрямки використання у грошовій формі (стаття витрат) | H6: Сума, тис. грн | I6: Перелік використаних товарів та послуг у натуральній формі (канцтовари, господарські товари, будівельні товари, медикаменти та перев'язувальні матеріали, продукти харчування, м"який інвентар, основні засоби та інші) | J6: Сума, тис. грн
A7: 1 | B7: Фізичні особи | C7: 4952.4 | F7: =C7 -> 4952.4
A8: 2 | B8: ТОВ Алсі ЛТД | C8: 9 | F8: 9
A9: 3 | B9: БФ Таблеточки | C9: =5+15 -> 20 | F9: 20
A10: 4 | B10: Укргазбанк | C10: 65.6 | F10: 65.6 | G10: 2240 | H10: 2.9 | I10: касове обслуговування
A11: 5 | B11: ТОВ Димлен | G11: 2210 | H11: 7.2 | I11: морозильна камера
A12: 6 | B12: ТОВ МЦФЕР Україна | G12: 2240 | H12: 4.9 | I12: Інформаційно-консульт. Послуги
A13: 7 | B13: ТОВ Катран | G13: 2210 | H13: 5.8 | I13: меблі
A14: 8 | B14: ФОП Харченко | G14: 2210 | H14: 13.6 | I14: меблі
B15: ТОВ Інфотрейд | G15: 2210 | H15: 2.52 | I15: стрічка 24мм
A16: 9 | B16: ТОВ Екомед | G16: 2220 | H16: 7 | I16: медикаменти
A17: 10 | B17: ТОВ фірма Технокомплекс | F17: =SUM(C17,D17) -> 0 | G17: 2220 | H17: 20 | I17: одяг протиепідемічний | J17: =F17 -> 0
A18: 11 | B18: Фоп Вишняк | F18: =SUM(C18,D18) -> 0 | G18: 2220 | H18: 7 | I18: медикаменти | J18: =F18 -> 0
A19: 12 | B19: ТД Волес | G19: 2220 | H19: =3.3+4.76 -> 8.06 | I19: реактиви
A20: 13 | B20: ФОП Колодницький | G20: 2220 | H20: 98.9 | I20: реактиви
A21: 14 | B21: Тов Лабікс | G21: 2220 | H21: 70.4 | I21: реактиви
A22: 15 | B22: Фоп Кримова | G22: 2220 | H22: 12.4 | I22: пробірки
A23: =A22+1 -> 16 | B23: ТОВ АЛСІ ЛТД | G23: 2220 | H23: 147.67 | I23: флакони мед.
A24: =A23+1 -> 17 | B24: ФОП Гладун М.Ю. | G24: 2220 | H24: 124.15 | I24: набори ІФА
A25: 18 | B25: ТОВ "АТ Каргіл" | D25: =9.3+27.6+57.9 -> 94.8 | E25: медикаменти | F25: =SUM(C25,D25) -> 94.8 | G25: 2220 | I25: медикаменти | J25: =F25 -> 94.8
A26: 19 | B26: БФ Відродження | D26: 199.83 | E26: медикаменти | F26: =119.92+79.91 -> 199.83 | G26: 2220 | I26: медикаменти | J26: 199.83
A27: 20 | B27: ТОВ Юрія Фарм | D27: =7.7+28.8+22.1 -> 58.6 | E27: медикаменти | F27: =SUM(C27,D27) -> 58.6 | G27: 2220 | I27: медикаменти | J27: =F27 -> 58.6
A28: 21 | B28: БФ Педіатри проти раку. | D28: 32.2 | E28: медикаменти | F28: =SUM(C28,D28) -> 32.2 | G28: 2220 | I28: медикаменти | J28: =F28 -> 32.2
A29: 22 | B29: ТОВ Гледфарм | D29: 33.4 | E29: медикаменти | F29: =SUM(C29,D29) -> 33.4 | G29: 2220 | I29: медикаменти | J29: =F29 -> 33.4
A30: 23 | B30: Фізична особа | E30: медикаменти | F30: =SUM(C30,D30) -> 0 | J30: =F30 -> 0
A31: 24 | B31: ФОП Череватенко | D31: 64.7 | E31: медикаменти | F31: 64.7 | G31: 2220 | I31: медикаменти | J31: =F31 -> 64.7
A32: 25 | B32: ФОП Предерій | D32: 1.9 | E32: медикаменти | F32: =SUM(C32,D32) -> 1.9 | G32: 2220 | I32: медикаменти | J32: =F32 -> 1.9
A33: 26 | B33: ТОВ"ІСТ ВЕСТ БІОФАРМА" | D33: 9.6 | E33: медикаменти | F33: 9.6 | G33: 2220 | I33: медикаменти | J33: 9.6
A34: 27 | B34: ГО"Афіни.Жінки проти раку" | D34: =21.5+26.5 -> 48 | E34: медикаменти | F34: 48 | G34: 2220 | I34: медикаменти | J34: 48
A35: 28 | B35: БО"БФ "СВОЇ" | D35: 298.7 | E35: медикаменти | F35: 298.7 | G35: 2220 | I35: медикаменти | J35: 298.7
A36: 29 | B36: ТОВ Медичний центр М.Т.К. | D36: 7.22 | E36: медикаменти | F36: 7.22 | G36: 2220 | I36: медикаменти | J36: 7.22
A37: 30 | B37: БФ СВЕТР | D37: 24.85 | E37: медикаменти | F37: 24.85 | G37: 2220 | I37: медикаменти | J37: 24.85
A38: 31 | B38: БФ"З вірою в майбутнє дітей" | D38: 4.5 | E38: медикаменти | F38: 4.5 | G38: 2220 | I38: медикаменти | J38: 4.5
A39: 32 | B39: БФ"Сучасне село та місто" | D39: 20.01 | E39: медикаменти | F39: 20.01 | G39: 2220 | I39: медикаменти | J39: 20.01
A40: 33 | B40: ПАТ"Лекхім-Харків | D40: 25.68 | E40: медикаменти | F40: 25.68 | G40: 2220 | I40: медикаменти | J40: 25.68
A41: 34 | B41: ТОВ"Нутриція Укр" | D41: 5.65 | E41: медикаменти | F41: 5.65 | G41: 2220 | I41: медикаменти | J41: 5.65
A42: 35 | B42: ФОП Аксенова Л.Ю. | D42: 4.83 | E42: медикаменти | F42: 4.83 | G42: 2220 | I42: медикаменти | J42: 4.83
A43: 36 | B43: БФ Свої | D43: 0.79 | E43: візок | F43: 0.79 | G43: 2210 | I43: мікропіпетка | J43: 0.79
A44: 37 | B44: БО Фундація прямої доп. | E44: госп. товари | F44: 0 | G44: 2210 | I44: госп. товари | J44: 0
A45: 38 | B45: БФ Миротворці України | E45: госп. товари | F45: 0 | G45: 2210 | I45: госп. товари | J45: 0
A46: 39 | B46: Фізична особа | D46: 0.39 | E46: термометрир | F46: 0.39 | G46: 2210 | I46: =E46 -> термометрир | J46: 0.39
A47: 40 | B47: ТОВ Медицина | E47: проект тарифів | G47: 2240 | H47: 173.1 | I47: =E47 -> проект тарифів | J47: 0
A48: 41 | B48: ГІОЦ | E48: послуги з супровд. Програм. | G48: 2240 | H48: 50 | I48: послуги з супровд. Програм. | J48: 0
A49: 42 | B49: Тов Меркурий | E49: підписка | G49: 2210 | H49: 13.9 | I49: Підписка
A50: 43 | B50: Комісаров | E50: Замки, ключі, петлі | G50: 2210 | H50: 7.1 | I50: Замки, ключі, петлі | J50: 0
A51: 44 | B51: ФОП Ратієв | E51: діагностика устаткув. | G51: 2240 | H51: 24.8 | I51: =E51 -> діагностика устаткув. | J51: 0
A52: 45 | B52: ПП Агенція Ірис | E52: Аплікатор | G52: 2210 | H52: 9.6 | I52: =E52 -> Аплікатор
A53: 46 | B53: ФОП Короленко | G53: 2210 | H53: 3.8 | I53: Ролети
A54: 47 | B54: Омелія Сервіс | G54: 2210 | H54: 6.1 | I54: госп товари
A55: 48 | B55: Кудла | E55: Послуги з обробки | G55: 2240 | H55: 4.4 | I55: Послуги з обробки | J55: 0
A56: 49 | B56: УПЦ Печерська Лавра | D56: 16.4 | E56: овочі | F56: =SUM(C56,D56) -> 16.4 | G56: 2230 | I56: =E56 -> овочі | J56: =D56 -> 16.4
A57: 50 | B57: Фізична особа | D57: 3.8 | E57: меблі | F57: =SUM(C57,D57) -> 3.8 | G57: 2210 | I57: =E57 -> меблі | J57: 3.8
A58: 51 | B58: Бф педиатри проти раку | D58: 9.6 | E58: електроди | F58: 9.6 | G58: 2210 | I58: електроди | J58: 9.6
A59: 52 | B59: НМЦ Будквалифкадри | E59: навчання | G59: 2282 | H59: 1.3
A60: 53 | B60: ТОВ Єврокопицентр | E60: ремонт техніки | G60: 2240 | H60: 2.5
A61: 54 | B61: ТОВ Центр информац. Технол. | E61: инф. Консульт посл | G61: 2240 | H61: 13
A62: 55 | B62: ТОВ Олимпмедскрвіс | E62: ремонт обладнання | G62: 2240 | H62: 13
A63: 56 | B63: ТОВ Лексстатусгруп | E63: оцінка майна | G63: 2240 | H63: 194.5
A64: 57 | B64: Фоп Рябінкін | E64: стер. Бокс | G64: 3110 | H64: 13.3
A65: 58 | B65: ПРаТ "Княжна Вієнна…." | E65: страхування | G65: 2240 | H65: 2.2 | I65: страхування
A66: 59 | B66: ТОВ "Адвентумбуд" | E66: очищення території від грунту | H66: 49.6 | I66: очищення території від грунту
A67: 60 | B67: КНП "Лікарня №7" | E67: проф.огляд | G67: 2240 | H67: 23.4 | I67: =E67 -> проф.огляд
A68: 61 | B68: ТОВ "Дімлен" | E68: пральна машина | G68: 2210 | H68: 7 | I68: =E68 -> пральна машина
A69: 62 | B69: ТОВ "Кріогенсервіс" | E69: послуги | G69: 2240 | H69: 0.4 | I69: послуги
A70: 63 | B70: Центр системи безпеки | E70: с-ма безпеки | G70: 2240 | H70: 21.2 | I70: с-ма безпеки
A71: 64 | B71: КП "ГІОЦ" | E71: супров.програми | G71: 2240 | H71: 11.2 | I71: супров.програми
A72: 65 | B72: КНП "КДЦ"Святош. р-ну" | E72: проф.огляд | G72: 2240 | H72: 5.9 | I72: проф.огляд
A73: 66 | B73: ДП "СДО-ЦСУДБЕ" | E73: експертиза кошторису | G73: 2240 | H73: 4 | I73: експертиза кошторису
A74: 67 | B74: НЦ МПП Буфкваліфкадри | E74: навчання | G74: 2282 | H74: 1.3 | I74: навчання
A75: 68 | B75: ТОВ ПК Інжиніринг | E75: послуги з ремонту | G75: 2240 | H75: 16.5 | I75: послуги з ремонту
A76: 69 | B76: Центр медстат | D76: 0.45 | E76: листи | F76: 0.5 | G76: 2210 | I76: листи | J76: 0.45
A77: 70 | B77: ДКСУ Святошинськогорайону | E77: адмінпослуги | G77: 2800 | H77: 24.3 | I77: адмінпослуги
B78: ВСЬОГО по закладу | C78: =SUM(C7:C77) -> 5047 | D78: =SUM(D7:D77) -> 965.9 | F78: =SUM(F7:F77) -> 6012.95 | H78: =SUM(H7:H77) -> 1229.9 | J78: =SUM(J7:J77) -> 965.9 | K78: =C78+D78-H78-J78 -> 3817.1
B79: Керівник установи | I79: Клюсов О.М.
A80: (підпис) (ініціали і прізвище)
B81: Головний бухгалтер | I81: Мамонова Т.Й.
F82: (підпис) (ініціали і прізвище)

Sheet кмкл17
M1: Додаток до листа
M2: від ________ 2020 № ______
B3: ІНФОРМАЦІЯ про надходження і використання благодійних пожертв від фізичних та юридичних осіб __КНП "КИЇВСЬКА МІСЬКА КЛІНІЧНА ЛІКАРНЯ №17"_за_ІІІ___квартал_2020_року
A4: найменування закладу охорони здоров′я
A5: № пп | B5: Найменування юридичної особи (або позначення фізичної особи) | C5: Благодійні пожертви, що були отримані закладом охорони здоров'я від фізичних та юридичних осіб | F5: Всього отримано благодійних пожертв, тис. грн | G5: Використання закладом охорони здоров'я благодійних пожертв, отриманих у грошовій (товари і послуг) формі | K5: Залишок невикористаних грошових коштів, товарів та послуг на кінець звітного періоду, тис. грн
C6: В грошовій форм, тис. грн | D6: В натуральній формі (товари і послуги), тис. грн | E6: Перелік товарів і послуг в натуральній формі (канцтовари, господарські товари, будівельні товари, медикаменти та перев'язувальні матеріали, продукти харчування, м"який інвентар, основні засоби та інші) | G6: Напрямки використання у грошовій формі (стаття витрат) | H6: Сума, тис. грн | I6: Перелік використаних товарів та послуг у натуральній формі (канцтовари, господарські товари, будівельні товари, медикаменти та перев'язувальні матеріали, продукти харчування, м"який інвентар, основні засоби та інші) | J6: Сума, тис. грн
B7: КНП "Київський міський центр крові" | D7: =43.7+33.5+27.4 -> 104.6 | E7: медикаменти | F7: =SUM(C7,D7) -> 104.6 | G7: 2210 | H7: =38+0.4+10 -> 48.4 | I7: госп.товари, орг.техніка | J7: 20.5
B8: Фізична особа | C8: 143 | D8: 0.8 | E8: м"який інвентар | F8: =SUM(C8,D8) -> 143.8 | G8: 2220 | H8: =6.7+35.2 -> 41.9 | I8: медикаменти та перев'язувальні матеріали | J8: =168.5 -> 168.5
E9: комп"ютерне обладнання | F9: 0 | G9: 2240 | H9: =1+35.2+42.3+0.1 -> 78.6 | J9: 78.6
E10: побут.техніка | F10: 0 | G10: 3110 | I10: м'який інвентар
D11: 4.2 | E11: мед.обладнання | F11: 4.2 | I11: ОЗ
B12: БО "100відсотків життя" | D12: 2.8 | E12: м"який інвентар | F12: 2.8 | I12: послуги
B13: БО "Твоя опораї" | D13: =270.2-156.9 -> 113.3 | E13: мед.обладнання | F13: 113.3 | I13: меблі
B14: БО "100відсотків життя" | D14: 3 | E14: медикаменти | F14: 3 | I14: медичне обладнання
B15: БФ родини Жебрівських | D15: 10.8 | E15: медикаменти | F15: 10.8 | I15: побутова техніка
E16: мед.обладнання | F16: 0
B17: Товариство Червоний Хрест | D17: 8.2 | E17: продукти | F17: 8.2
B18: ДП "КК "Рошен" | D18: 395.7 | E18: медикаменти | F18: 395.7
B19: ПрАТ"ФФ "Дарниця" | D19: 13 | E19: медикаменти | F19: 13
B20: БО "Благодійний Фонд" "Свої" | D20: 2.3 | E20: побут.техніка | F20: 2.3
B21: МБФ "Сприяння розвитку медицини" | D21: 16.1 | E21: меблі | F21: 16.1
B22: БФ "Твоя опора" | D22: 22.5 | E22: мед.обладнання | F22: 22.5
F23: 0
F24: 0
F25: 0
F26: 0
F27: 0
F28: 0
F29: 0
F30: 0
F31: 0
F32: 0
F33: 0
F34: 0
F35: 0
F36: 0
F37: 0
F38: 0
F39: 0
F40: 0
F41: 0
F42: 0
F43: 0
F44: 0
F45: 0
F46: 0
F47: 0
F48: 0
F49: 0
B50: ВСЬОГО по закладу | C50: =SUM(C7:C49) -> 143 | D50: =SUM(D7:D49) -> 697.3 | F50: 840.3 | H50: =SUM(H7:H49) -> 168.9 | J50: =SUM(J7:J49) -> 267.6 | K50: =C50-H50 -> -25.9
B53: Керівник установи | G53: Т.Барановська
F54: (підпис) (ініціали і прізвище)
B55: Головний бухгалтер | G55: Е.Урденко
F56: (підпис) (ініціали і прізвище)
B59: Виконавець: Урденко Е. | C59: 528-57-93

Sheet чорноб
K1: Додаток до листа
K2: Від 02.10.2020 №061-9869
B3: ІНФОРМАЦІЯ про надходження і використання благодійних пожертв від фізичних та юридичних осіб КНП “Київський міський центр радіаційного захисту населення від наслідків Чорнобильської катастрофи за ІІІ квартал 2020року
A4: найменування закладу охорони здоров′я
A5: № пп | B5: Найменування юридичної особи (або позначення фізичної особи) | C5: Благодійні пожертви, що були отримані закладом охорони здоров'я від фізичних та юридичних осіб | F5: Всього отримано благодійних пожертв, тис. грн | G5: Використання закладом охорони здоров'я благодійних пожертв, отриманих у грошовій (товари і послуг) формі | K5: Залишок невикористаних грошових коштів, товарів та послуг на кінець звітного періоду, тис. грн
C6: В грошовій форм, тис. грн | D6: В натуральній формі (товари і послуги), тис. грн | E6: Перелік товарів і послуг в натуральній формі (канцтовари, господарські товари, будівельні товари, медикаменти та перев'язувальні матеріали, продукти харчування, м"який інвентар, основні засоби та інші) | G6: Напрямки використання у грошовій формі (стаття витрат) | H6: Сума, тис. грн | I6: Перелік використаних товарів та послуг у натуральній формі (канцтовари, господарські товари, будівельні товари, медикаменти та перев'язувальні матеріали, продукти харчування, м"який інвентар, основні засоби та інші) | J6: Сума, тис. грн
A7: 1 | B7: Фізична особа Луцюк О.П. | D7: 12.7 | E7: Предмети, матеріали та інвентар | F7: =SUM(C7,D7) -> 12.7 | I7: =E7 -> Предмети, матеріали та інвентар | J7: =D7 -> 12.7
A8: 2 | B8: Фізична особа Войтович Г.В. | D8: 12.27 | E8: Медикаменти та перев”язувальні матеріали | F8: 12.27 | I8: =E8 -> Медикаменти та перев”язувальні матеріали | J8: =D8 -> 12.27
A9: 3 | B9: Фізичні особи | C9: 55.9 | F9: 55.9
F10: 0
F11: 0
F12: 0
F13: 0
F14: 0
F15: 0
F16: 0
F17: 0
F18: 0
F19: 0
F20: 0
F21: 0
F22: 0
F23: 0
F24: 0
F25: 0
F26: 0
F27: 0
F28: 0
F29: 0
F30: 0
F31: 0
F32: 0
F33: 0
F34: 0
F35: 0
F36: 0
F37: 0
F38: 0
F39: 0
F40: 0
F41: 0
F42: 0
F43: 0
F44: 0
F45: 0
F46: 0
F47: 0
F48: 0
F49: 0
B50: ВСЬОГО по закладу | C50: =SUM(C7:C49) -> 55.9 | D50: =SUM(D7:D49) -> 24.97 | F50: 80.87 | H50: =SUM(H7:H49) -> 0 | J50: =SUM(J7:J49) -> 24.97 | K50: =C50-H50 -> 55.9
B52: В.о.директора | G52: Олофінська Н.М.
F53: (підпис) (ініціали і прізвище)
B54: Головний бухгалтер | G54: Дерій А.Ю.
F55: (підпис) (ініціали і прізвище)

Sheet центр хірургії ока
M1: Додаток до листа
M2: від ________ 2020 № ______
B3: ІНФОРМАЦІЯ про надходження і використання благодійних пожертв від фізичних та юридичних осіб Київська міська клінічна офтальмологічна лікарня "Центр мікрохірургії ока" за ІІІ квартал 2020 року
A4: найменування закладу охорони здоров′я
A5: № пп | B5: Найменування юридичної особи (або позначення фізичної особи) | C5: Благодійні пожертви, що були отримані закладом охорони здоров'я від фізичних та юридичних осіб | F5: Всього отримано благодійних пожертв, тис. грн | G5: Використання закладом охорони здоров'я благодійних пожертв, отриманих у грошовій (товари і послуг) формі | K5: Залишок невикористаних грошових коштів, товарів та послуг на кінець звітного періоду, тис. грн
C6: В грошовій форм, тис. грн | D6: В натуральній формі (товари і послуги), тис. грн | E6: Перелік товарів і послуг в натуральній формі (канцтовари, господарські товари, будівельні товари, медикаменти та перев'язувальні матеріали, продукти харчування, м"який інвентар, основні засоби та інші) | G6: Напрямки використання у грошовій формі (стаття витрат) | H6: Сума, тис. грн | I6: Перелік використаних товарів та послуг у натуральній формі (канцтовари, господарські товари, будівельні товари, медикаменти та перев'язувальні матеріали, продукти харчування, м"який інвентар, основні засоби та інші) | J6: Сума, тис. грн
A7: 1 | B7: Комунальне підприємство "Інженерний центр "ВК КМДА | C7: 0 | D7: 1734.6 | E7: основні засоби | F7: =SUM(C7,D7) -> 1734.6 | G7: 3110 | I7: основні засоби | J7: 1734.6
F8: =SUM(C8,D8) -> 0
F9: 0
F10: 0
F11: 0
F12: 0
F13: 0
F14: 0
F15: 0
F16: 0
F17: 0
F18: 0
F19: 0
F20: 0
F21: 0
F22: 0
F23: 0
F24: 0
F25: 0
F26: 0
F27: 0
F28: 0
F29: 0
F30: 0
F31: 0
F32: 0
F33: 0
F34: 0
F35: 0
F36: 0
F37: 0
F38: 0
F39: 0
F40: 0
F41: 0
F42: 0
F43: 0
F44: 0
F45: 0
F46: 0
F47: 0
F48: 0
F49: 0
B50: ВСЬОГО по закладу | C50: =SUM(C7:C49) -> 0 | D50: =SUM(D7:D49) -> 1734.6 | F50: 1734.6 | H50: =SUM(H7:H49) -> 0 | J50: =SUM(J7:J49) -> 1734.6 | K50: =C50-H50 -> 0
B53: Заступник головного лікаря з амбулаторно-поліклінічної роботи | G53: Лява В.Б.
F54: (підпис) (ініціали і прізвище)
B55: Головний бухгалтер | G55: Ляшенко К.І.
F56: (підпис) (ініціали і прізвище)

Sheet цсм
M1: Додаток до листа
M2: від ________ 2020 № ______
B3: ІНФОРМАЦІЯ про надходження і використання благодійних пожертв від фізичних та юридичних осіб КНП "Центр спортивної медицини міста Києва" за 3 квартал 2020 року
A4: найменування закладу охорони здоров′я
A5: № пп | B5: Найменування юридичної особи (або позначення фізичної особи) | C5: Благодійні пожертви, що були отримані закладом охорони здоров'я від фізичних та юридичних осіб | F5: Всього отримано благодійних пожертв, тис. грн | G5: Використання закладом охорони здоров'я благодійних пожертв, отриманих у грошовій (товари і послуг) формі | K5: Залишок невикористаних грошових коштів, товарів та послуг на кінець звітного періоду, тис. грн
C6: В грошовій форм, тис. грн | D6: В натуральній формі (товари і послуги), тис. грн | E6: Перелік товарів і послуг в натуральній формі (канцтовари, господарські товари, будівельні товари, медикаменти та перев'язувальні матеріали, продукти харчування, м"який інвентар, основні засоби та інші) | G6: Напрямки використання у грошовій формі (стаття витрат) | H6: Сума, тис. грн | I6: Перелік використаних товарів та послуг у натуральній формі (канцтовари, господарські товари, будівельні товари, медикаменти та перев'язувальні матеріали, продукти харчування, м"який інвентар, основні засоби та інші) | J6: Сума, тис. грн
A7: 1 | B7: Благодійні внески від фізичних осіб | C7: 449.74 | F7: =SUM(C7,D7) -> 449.74 | G7: 2210 | H7: 3.76 | I7: Вертикальні жалюзі, таблички для лікарських кабінетів.
F8: =SUM(C8,D8) -> 0 | G8: 2220 | H8: 302.89 | I8: медичні препарати,лікарські засоби,вироби медичного призначення,тест-смужки лабораторні,дренажні системи,шовний матеріал,кисень медичний,дезинфекційні засоби,індикаторні смужки.
F9: 0 | G9: 2230 | H9: 27.41 | I9: постачання готової іжі (продукти харчування)
F10: 0 | G10: 2240 | H10: 112.15 | I10: Технічне обслуговування ліфтів,технічне обслуговування та ремонт медичного обладнання,послуги по лабораторних дослідженнях,дератизаціії,дезинсекції,абонплата з доступу до мережі Інтернету,комісія банку за обслуговування зарплатних карткових рах.працівників,поточні ремонтні роботи,послуги по виготовленню звіту справедливої вартості будівлі.
F11: 0
F12: 0
F13: 0
F14: 0
F15: 0
F16: 0
F17: 0
F18: 0
F19: 0
F20: 0
F21: 0
F22: 0
F23: 0
F24: 0
F25: 0
F26: 0
F27: 0
F28: 0
F29: 0
F30: 0
F31: 0
F32: 0
F33: 0
F34: 0
F35: 0
F36: 0
F37: 0
F38: 0
F39: 0
F40: 0
F41: 0
F42: 0
F43: 0
F44: 0
F45: 0
F46: 0
F47: 0
F48: 0
F49: 0
B50: ВСЬОГО по закладу | C50: =SUM(C7:C49) -> 449.74 | D50: =SUM(D7:D49) -> 0 | F50: 449.74 | H50: =SUM(H7:H49) -> 446.21 | J50: =SUM(J7:J49) -> 0 | K50: =C50-H50 -> 3.53
B53: Керівник установи | G53: В.В.Манжалій
F54: (підпис) (ініціали і прізвище)
B55: Головний бухгалтер | G55: К.В.Москаленко
F56: (підпис) (ініціали і прізвище)

Sheet кцткм
B2: ІНФОРМАЦІЯ про надходження і використання благодійних пожертв від фізичних та юридичних осіб КНП "Київський центр трансплантації кісткового мозку" за ІІІ квартал 2020 року
A3: найменування закладу охорони здоров′я
A4: № пп | B4: Найменування юридичної особи (або позначення фізичної особи) | C4: Благодійні пожертви, що були отримані закладом охорони здоров'я від фізичних та юридичних осіб | F4: Всього отримано благодійних пожертв, тис. грн | G4: Використання закладом охорони здоров'я благодійних пожертв, отриманих у грошовій (товари і послуг) формі | K4: Залишок невикористаних грошових коштів, товарів та послуг на кінець звітного періоду, тис. грн
C5: В грошовій форм, тис. грн | D5: В натуральній формі (товари і послуги), тис. грн | E5: Перелік товарів і послуг в натуральній формі (канцтовари, господарські товари, будівельні товари, медикаменти та перев'язувальні матеріали, продукти харчування, м"який інвентар, основні засоби та інші) | G5: Напрямки використання у грошовій формі (стаття витрат) | H5: Сума, тис. грн | I5: Перелік використаних товарів та послуг у натуральній формі (канцтовари, господарські товари, будівельні товари, медикаменти та перев'язувальні матеріали, продукти харчування, м"який інвентар, основні засоби та інші) | J5: Сума, тис. грн
A6: 1 | B6: ФОП Ічкаленко В.В. | D6: 3 | E6: вир.мед.призначення | F6: =C6+D6 -> 3
A7: 2 | B7: ТОВ "Мега-Поліграф" | D7: 43.91 | E7: основні засоби | F7: =SUM(C7,D7) -> 43.91 | G7: 3110 | H7: 104.97 | I7: основні засоби
A8: 3 | B8: Фізична особа | C8: 1.08 | F8: =SUM(C8,D8) -> 1.08 | G8: 2240 | H8: 3 | I8: послуги
F9: =SUM(C9,D9) -> 0
B10: ВСЬОГО по закладу | C10: =SUM(C6:C9) -> 1.08 | D10: =SUM(D6:D9) -> 46.91 | F10: =SUM(C10,D10) -> 47.99 | H10: =SUM(H6:H9) -> 107.97 | J10: =SUM(J6:J9) -> 0 | K10: =C10-H10 -> -106.89
B15: В.о.директора | G15: С.А.Ціва
F16: (підпис) (ініціали і прізвище)
B17: Головний бухгалтер | G17: Ригалюк О.І.
F18: (підпис) (ініціали і прізвище)
B21: Виконавець: Аврашко О.А. тел.451-15-80

Sheet кмцдн
J1: Додаток до листа
J2: від 06.07.2020 № 60
B3: ІНФОРМАЦІЯ про надходження і використання благодійних пожертв від фізичних та юридичних осіб КНП "Київський міський центр дитячої нейрохірургії" за ІІІ квартал 2020 року
A4: найменування закладу охорони здоров′я
A5: № пп | B5: Найменування юридичної особи (або позначення фізичної особи) | C5: Благодійні пожертви, що були отримані закладом охорони здоров'я від фізичних та юридичних осіб | F5: Всього отримано благодійних пожертв, тис. грн | G5: Використання закладом охорони здоров'я благодійних пожертв, отриманих у грошовій (товари і послуг) формі | K5: Залишок невикористаних грошових коштів, товарів та послуг на кінець звітного періоду, тис. грн
C6: В грошовій форм, тис. грн | D6: В натуральній формі (товари і послуги), тис. грн | E6: Перелік товарів і послуг в натуральній формі (канцтовари, господарські товари, будівельні товари, медикаменти та перев'язувальні матеріали, продукти харчування, м"який інвентар, основні засоби та інші) | G6: Напрямки використання у грошовій формі (стаття витрат) | H6: Сума, тис. грн | I6: Перелік використаних товарів та послуг у натуральній формі (канцтовари, господарські товари, будівельні товари, медикаменти та перев'язувальні матеріали, продукти харчування, м"який інвентар, основні засоби та інші) | J6: Сума, тис. грн
A7: 1. | B7: БФ "Я майбутнє України" | C7: - | D7: 107.75 | E7: медобладнання | F7: =SUM(C7,D7) -> 107.75 | I7: медобладнання | J7: 107.75
A8: 2. | B8: БО "БФ ім. Св. Луки (Войно-Ясенецького)" | C8: - | D8: 97.07 | E8: обладнання | F8: 97.07 | I8: обладнання | J8: 97.07
A9: 3. | B9: БО "БФ ім. Св. Луки (Войно-Ясенецького)" | C9: - | D9: 37 | E9: медобладнання | F9: 37 | I9: медобладнання | J9: 37
A10: 4. | B10: БО "ВБФ "Крона" | C10: - | D10: 145.56 | E10: медобладнання | F10: 145.56 | I10: медобладнання | J10: 145.56
A11: 5. | B11: ТОВ "Нова Пошта" | C11: - | D11: 230.78 | E11: медобладнання | F11: 230.78 | I11: медобладнання | J11: 230.78
A12: 6. | B12: БФ "Мама і немовля" | C12: - | D12: 81 | E12: медобладнання | F12: 81 | I12: медобладнання | J12: 81
A13: 7. | B13: ТОВ "ЕПАМ СИСТЕМЗ" | C13: - | D13: 28 | E13: оргтехніка | F13: 28 | I13: оргтехніка | J13: 28
B14: ВСЬОГО по закладу | C14: =SUM(C7:C13) -> 0 | D14: =SUM(D7:D13) -> 727.16 | F14: =SUM(F7:F13) -> 727.16 | H14: =SUM(H7:H13) -> 0 | J14: =SUM(J7:J13) -> 727.16 | K14: =C14-H14 -> 0
B17: В.о.директора | G17: К.С.Новакович
F18: (підпис) (ініціали і прізвище)
B19: Головний бухгалтер | G19: О.Г.Болтенко
F20: (підпис) (ініціали і прізвище)
B21: Ірина Григоренко 097 158 02 78

Sheet академія здоров
M1: Додаток до листа
M2: від ________ 2020 № ______
B3: ІНФОРМАЦІЯ про надходження і використання благодійних пожертв від фізичних та юридичних осіб КНП "Академія здоров'я людини"_за ІІІ квартал 2020 року
A4: найменування закладу охорони здоров′я
A5: № пп | B5: Найменування юридичної особи (або позначення фізичної особи) | C5: Благодійні пожертви, що були отримані закладом охорони здоров'я від фізичних та юридичних осіб | F5: Всього отримано благодійних пожертв, тис. грн | G5: Використання закладом охорони здоров'я благодійних пожертв, отриманих у грошовій (товари і послуг) формі | K5: Залишок невикористаних грошових коштів, товарів та послуг на кінець звітного періоду, тис. грн
C6: В грошовій форм, тис. грн | D6: В натуральній формі (товари і послуги), тис. грн | E6: Перелік товарів і послуг в натуральній формі (канцтовари, господарські товари, будівельні товари, медикаменти та перев'язувальні матеріали, продукти харчування, м"який інвентар, основні засоби та інші) | G6: Напрямки використання у грошовій формі (стаття витрат) | H6: Сума, тис. грн | I6: Перелік використаних товарів та послуг у натуральній формі (канцтовари, господарські товари, будівельні товари, медикаменти та перев'язувальні матеріали, продукти харчування, м"який інвентар, основні засоби та інші) | J6: Сума, тис. грн
A7: 1 | B7: Фізична особа | C7: 1231 | F7: =SUM(C7,D7) -> 1231 | G7: 2240 | H7: 80 | I7: касове обслуг, поточний ремонт , послуги
A8: 2 | F8: =SUM(C8,D8) -> 0 | G8: 2220 | H8: 435.1 | I8: медикаменти
F9: 0 | G9: 2210 | H9: 5.8 | I9: господарські товари
F10: 0
F11: 0
F12: 0
F13: 0
F14: 0
F15: 0
F16: 0
F17: 0
F18: 0
F19: 0
F20: 0
F21: 0
F22: 0
F23: 0
F24: 0
F25: 0
F26: 0
F27: 0
F28: 0
F29: 0
F30: 0
F31: 0
F32: 0
F33: 0
F34: 0
F35: 0
F36: 0
F37: 0
F38: 0
F39: 0
F40: 0
F41: 0
F42: 0
F43: 0
F44: 0
F45: 0
F46: 0
F47: 0
F48: 0
F49: 0
B50: ВСЬОГО по закладу | C50: =SUM(C7:C49) -> 1231 | D50: =SUM(D7:D49) -> 0 | F50: 1231 | H50: =SUM(H7:H49) -> 520.9 | J50: =SUM(J7:J49) -> 0 | K50: =C50-H50 -> 710.1
B53: Заступник директора з економічних питань | G53: Сова І.К.
F54: (підпис) (ініціали і прізвище)
B55: Головний бухгалтер | G55: Затуливітер О.В.
F56: (підпис) (ініціали і прізвище)

Sheet кмпл
M1: Додаток до листа
M2: від ________ 2020 № ______
B3: ІНФОРМАЦІЯ про надходження і використання благодійних пожертв від фізичних та юридичних осіб КНП "Київська міська психоневрологічна лікарня №3" за 3 квартал 2020 року
A4: найменування закладу охорони здоров′я
A5: № пп | B5: Найменування юридичної особи (або позначення фізичної особи) | C5: Благодійні пожертви, що були отримані закладом охорони здоров'я від фізичних та юридичних осіб | F5: Всього отримано благодійних пожертв, тис. грн | G5: Використання закладом охорони здоров'я благодійних пожертв, отриманих у грошовій (товари і послуг) формі | K5: Залишок невикористаних грошових коштів, товарів та послуг на кінець звітного періоду, тис. грн
C6: В грошовій форм, тис. грн | D6: В натуральній формі (товари і послуги), тис. грн | E6: Перелік товарів і послуг в натуральній формі (канцтовари, господарські товари, будівельні товари, медикаменти та перев'язувальні матеріали, продукти харчування, м"який інвентар, основні засоби та інші) | G6: Напрямки використання у грошовій формі (стаття витрат) | H6: Сума, тис. грн | I6: Перелік використаних товарів та послуг у натуральній формі (канцтовари, господарські товари, будівельні товари, медикаменти та перев'язувальні матеріали, продукти харчування, м"який інвентар, основні засоби та інші) | J6: Сума, тис. грн
A7: 1 | B7: Фізична особа | C7: 331.6 | D7: 5.6 | E7: миючі засоби | F7: =SUM(C7,D7) -> 337.2 | G7: 2111 | H7: 170.8 | I7: миючі засоби | J7: 5.6
D8: 5 | E8: інвентар, меблі | F8: =SUM(C8,D8) -> 5 | G8: 2120 | H8: 23.2 | I8: інвентар, меблі | J8: 5
F9: 0 | G9: 2210 | H9: 8.7
F10: 0 | G10: 2230 | H10: 24.1
F11: 0 | G11: 2240 | H11: 64.6
F12: 0 | G12: 2282 | H12: 8.2
F13: 0 | G13: 2800 | H13: 1.8
F14: 0
F15: 0
F16: 0
F17: 0
F18: 0
F19: 0
F20: 0
F21: 0
F22: 0
F23: 0
F24: 0
F25: 0
F26: 0
F27: 0
F28: 0
F29: 0
F30: 0
F31: 0
F32: 0
F33: 0
F34: 0
F35: 0
F36: 0
F37: 0
F38: 0
F39: 0
F40: 0
F41: 0
F42: 0
F43: 0
F44: 0
F45: 0
F46: 0
F47: 0
F48: 0
F49: 0
B50: ВСЬОГО по закладу | C50: =SUM(C7:C49) -> 331.6 | D50: =SUM(D7:D49) -> 10.6 | F50: 342.2 | H50: =SUM(H7:H49) -> 301.4 | J50: =SUM(J7:J49) -> 10.6 | K50: =C50-H50 -> 30.2
B53: Керівник установи | G53: Ірина ВРУБЛЕВСЬКА
F54: (підпис) (ініціали і прізвище)
B55: Головний бухгалтер | G55: Олена ЯЩЕНКО
F56: (підпис) (ініціали і прізвище)

Sheet кмтл1
J1: Додаток №1 до листа
J2: від 05.10.2020 р. № 061-9869
A3: ІНФОРМАЦІЯ про надходження і використання благодійних пожертв від фізичних та юридичних осіб __Комунальне некомерційне підприємство "Київська міська туберкульозна лікарня №1 з диспансерним відділенням" виконавчого органу Київської міської ради (Київської міської державної адміністрації)_за 3 квартал 2020 року (за період з 01 липня 2020 рю по 30 вересня 2020 р.)
A4: найменування закладу охорони здоров′я
A5: № пп | B5: Найменування юридичної особи (або позначення фізичної особи) | C5: Благодійні пожертви, що були отримані закладом охорони здоров'я від фізичних та юридичних осіб | F5: Всього отримано благодійних пожертв, тис. грн | G5: Використання закладом охорони здоров'я благодійних пожертв, отриманих у грошовій (товари і послуг) формі | K5: Залишок невикористаних грошових коштів, товарів та послуг на кінець звітного періоду, тис. грн
C6: В грошовій форм, тис. грн | D6: В натуральній формі (товари і послуги), тис. грн | E6: Перелік товарів і послуг в натуральній формі (канцтовари, господарські товари, будівельні товари, медикаменти та перев'язувальні матеріали, продукти харчування, м"який інвентар, основні засоби та інші) | G6: Напрямки використання у грошовій формі (стаття витрат) | H6: Сума, тис. грн | I6: Перелік використаних товарів та послуг у натуральній формі (канцтовари, господарські товари, будівельні товари, медикаменти та перев'язувальні матеріали, продукти харчування, м"який інвентар, основні засоби та інші) | J6: Сума, тис. грн
A7: 1 | B7: Благодійна організація "Фонд Олени Пінчук" | D7: =3.4+10.5+16.608 -> 30.508 | E7: витратні матеріали | F7: =SUM(C7,D7) -> 30.508 | I7: витратні матеріали | J7: =3.4+10.5+16.608 -> 30.508
A8: 2 | B8: Благодійний фонд "100 відсотів життя. Київський регіон" | D8: 5 | E8: опромінювач ультрафіолетовий | F8: =SUM(C8,D8) -> 5 | I8: опромінювач ультрафіолетовий | J8: 5
F10: =SUM(C10,D10) -> 0
F11: 0
F12: 0
F13: 0
F14: 0
F15: 0
F16: 0
F17: 0
F18: 0
F19: 0
F20: 0
F21: 0
F22: 0
F23: 0
F24: 0
F25: 0
F26: 0
F27: 0
F28: 0
F29: 0
F30: 0
F31: 0
F32: 0
F33: 0
F34: 0
F35: 0
F36: 0
F37: 0
F38: 0
F39: 0
F40: 0
F41: 0
F42: 0
F43: 0
F44: 0
F45: 0
B46: ВСЬОГО по закладу | C46: =SUM(C7:C45) -> 0 | D46: =SUM(D7:D45) -> 35.508 | F46: 35.508 | H46: =SUM(H7:H45) -> 0 | J46: =SUM(J7:J45) -> 35.508 | K46: =C46-H46 -> 0
B49: В.о. директора | G49: С.Г. Павленко
F50: (підпис) (ініціали і прізвище)
B51: Головний бухгалтер | G51: В.М. Колесник
F52: (підпис) (ініціали і прізвище)

Sheet кмкшвл
I1: Додаток до листа
I2: від ________ 2020 № ______
B3: ІНФОРМАЦІЯ про надходження і використання благодійних пожертв від фізичних та юридичних осіб по КНП " КИЇВСЬКА МІСЬКА КЛІНІЧНА ШКІРНО-ВЕНЕРОЛОГІЧНА ЛІКАРНЯ" за ІІІ квартал 2020 рік
A4: найменування закладу охорони здоров′я
A5: № пп | B5: Найменування юридичної особи (або позначення фізичної особи) | C5: Благодійні пожертви, що були отримані закладом охорони здоров'я від фізичних та юридичних осіб | F5: Всього отримано благодійних пожертв, тис. грн | G5: Використання закладом охорони здоров'я благодійних пожертв, отриманих у грошовій (товари і послуг) формі | K5: Залишок невикористаних грошових коштів, товарів та послуг на кінець звітного періоду, тис. грн
C6: В грошовій форм, тис. грн | D6: В натуральній формі (товари і послуги), тис. грн | E6: Перелік товарів і послуг в натуральній формі (канцтовари, господарські товари, будівельні товари, медикаменти та перев'язувальні матеріали, продукти харчування, м"який інвентар, основні засоби та інші) | G6: Напрямки використання у грошовій формі (стаття витрат) | H6: Сума, тис. грн | I6: Перелік використаних товарів та послуг у натуральній формі (канцтовари, господарські товари, будівельні товари, медикаменти та перев'язувальні матеріали, продукти харчування, м"який інвентар, основні засоби та інші) | J6: Сума, тис. грн
A7: 1 | B7: БО"100відсотків життя.Київський регіон" | D7: 1.3 | E7: канцелярські товари | F7: =SUM(C7,D7) -> 1.3 | G7: 2210 | H7: 1.3 | I7: канцелярські товари | J7: 1.3
A8: 1 | B8: БО"100відсотків життя.Київський регіон" | D8: 20 | E8: медикаменти | F8: =SUM(C8,D8) -> 20 | G8: 2220 | H8: 20 | I8: медикаменти | J8: 20
A9: 3 | B9: ТОВ "ГЛЕДФАРМ ЛТД" | D9: 6.2 | E9: медикаменти | F9: =SUM(C9,D9) -> 6.2 | G9: 2220 | H9: 6.2 | I9: медикаменти | J9: 6.2
B10: БО МБВ "Давай допоможемо" | D10: 23.5 | E10: медикаменти | G10: 2220 | H10: 23.5 | I10: медикаменти | J10: 23.5
B11: ТОВ "Ромстал Україна" | D11: 8.2 | E11: медикаменти | H11: 8.2 | I11: медикаменти | J11: 8.2
A12: 4 | B12: ТОВ "Міррор плюс" | D12: 0.9 | E12: продукти харчування | F12: =SUM(C12,D12) -> 0.9 | G12: 2230 | H12: 0.9 | I12: продукти харчування | J12: 0.9
A13: 5 | B13: Фізичні особи | D13: 49.4 | E13: мед. обладнання | F13: =SUM(C13,D13) -> 49.4 | G13: 3110 | H13: 49.4 | I13: мед. обладнання | J13: 49.4
A14: 6 | B14: Фізичні особи | C14: 739.5 | F14: =C14 -> 739.5 | G14: 2210 | H14: 77.2 | I14: господарчі товари | J14: 77.2
A15: 7 | B15: ФОП Іщенко Д.В. | C15: 0.5 | F15: =C15 -> 0.5 | G15: 2220 | H15: 32.6 | I15: медикаменти | J15: 32.6
A16: 8 | B16: ТОВ "ІНВЕСТИЦІЇ ТА РОЗВИТОК" | C16: 1000 | F16: 1000 | G16: 2240 | H16: 211.6 | I16: оплата послуг(т/о ліфтів, комісія банку,страхування, супров. програм) | J16: 211.6
A17: 9 | B17: ТОВ "ДОММЕД" | C17: 1 | F17: 1 | G17: 2250 | H17: 1.1 | I17: видатки на відрядження | J17: 1.1
A18: 10 | B18: ФОП Поясик О.Г. | C18: 1 | F18: 1 | G18: 2275 | H18: 12.8 | I18: утилізація відходів | J18: 12.8
A19: 11 | B19: ТОВ КФЗ | C19: 15 | F19: 15 | G19: 3110 | H19: 1170.7 | I19: мед. обладнання | J19: 1170.7
F20: 0
F23: 0
F24: 0
F25: 0
F26: 0
F27: 0
F28: 0
F29: 0
F30: 0
F31: 0
F32: 0
F33: 0
F34: 0
F35: 0
F36: 0
F37: 0
F38: 0
F39: 0
F40: 0
F41: 0
F42: 0
F43: 0
F44: 0
F45: 0
F46: 0
F47: 0
F48: 0
F49: 0
F50: 0
F51: 0
F52: 0
F53: 0
F54: 0
B55: ВСЬОГО по закладу | C55: =SUM(C8:C54) -> 1757 | D55: =SUM(D7:D54) -> 109.5 | F55: 1866.5 | H55: =SUM(H7:H54) -> 1615.5 | J55: =SUM(J7:J54) -> 1615.5 | K55: =C55+D55-H55 -> 251
B58: В.о. директора | G58: О.В. Чубар
F59: (підпис) (ініціали і прізвище)
B60: Головний бухгалтер | G60: О.М. Галицька
F61: (підпис) (ініціали і прізвище)
